[Event "Snabbschacks-SM 2025"]
[Site "Norrköping, Sweden"]
[Date "2025.09.27"]
[Round "2.2"]
[White "Angskog, Kent"]
[Black "Carlsson, Ludvig"]
[Result "0-1"]
[TimeControl "25 min + 10 sec/move"]
[BlackTitle "IM"]
[WhiteElo "2118"]
[BlackElo "2389"]

1. e4 {[%clk 00:25:16]} {[%emt 00:00:03]} g6 {[%clk 00:24:58]} {[%emt
00:00:22]} 2. d4 {[%clk 00:25:19]} {[%emt 00:00:07]} d6 {[%clk 00:25:04]}
{[%emt 00:00:05]} 3. c4 {[%clk 00:25:00]} {[%emt 00:00:28]} Bg7 {[%clk
00:25:00]} {[%emt 00:00:13]} 4. Nc3 {[%clk 00:25:02]} {[%emt 00:00:08]} c5
{[%clk 00:25:05]} {[%emt 00:00:06]} 5. dxc5 {[%clk 00:24:34]} {[%emt 00:00:39]}
dxc5 {[%clk 00:24:10]} {[%emt 00:01:03]} 6. Qxd8+ {[%clk 00:24:00]} {[%emt
00:00:45]} Kxd8 {[%clk 00:24:16]} {[%emt 00:00:03]} 7. Be3 {[%clk 00:20:28]}
{[%emt 00:03:43]} Bxc3+ {[%clk 00:23:08]} {[%emt 00:01:18]} 8. bxc3 {[%clk
00:20:35]} {[%emt 00:00:02]} b6 {[%clk 00:23:14]} {[%emt 00:00:05]} 9. O-O-O+
{[%clk 00:20:00]} {[%emt 00:00:45]} Ke8 {[%clk 00:22:37]} {[%emt 00:00:47]} 10.
g3 {[%clk 00:13:00]} {[%emt 00:07:10]} Nc6 {[%clk 00:21:35]} {[%emt 00:01:12]}
11. f4 {[%clk 00:08:46]} {[%emt 00:04:25]} Nf6 {[%clk 00:21:05]} {[%emt
00:00:40]} 12. e5 {[%clk 00:07:37]} {[%emt 00:01:19]} Ng4 {[%clk 00:21:10]}
{[%emt 00:00:05]} 13. Bg2 {[%clk 00:07:29]} {[%emt 00:00:18]} Bb7 {[%clk
00:21:17]} {[%emt 00:00:03]} 14. Re1 {[%clk 00:07:11]} {[%emt 00:00:27]} Rd8
{[%clk 00:21:03]} {[%emt 00:00:24]} 15. h3 {[%clk 00:06:57]} {[%emt 00:00:24]}
Nxe3 {[%clk 00:18:20]} {[%emt 00:02:53]} 16. Rxe3 {[%clk 00:07:04]} {[%emt
00:00:04]} Na5 {[%clk 00:18:28]} {[%emt 00:00:02]} 17. Bxb7 {[%clk 00:07:03]}
{[%emt 00:00:11]} Nxb7 {[%clk 00:18:35]} {[%emt 00:00:03]} 18. Nf3 {[%clk
00:06:18]} {[%emt 00:00:55]} Na5 {[%clk 00:18:42]} {[%emt 00:00:03]} 19. e6
{[%clk 00:03:45]} {[%emt 00:02:43]} f6 {[%clk 00:17:08]} {[%emt 00:01:44]} 20.
Nd2 {[%clk 00:02:45]} {[%emt 00:01:10]} Kf8 {[%clk 00:15:15]} {[%emt 00:02:03]}
21. f5 {[%clk 00:02:00]} {[%emt 00:00:56]} gxf5 {[%clk 00:14:56]} {[%emt
00:00:28]} 22. Rf1 {[%clk 00:02:07]} {[%emt 00:00:04]} Rg8 {[%clk 00:14:40]}
{[%emt 00:00:25]} 23. Rf4 {[%clk 00:02:00]} {[%emt 00:00:17]} Rg5 {[%clk
00:14:27]} {[%emt 00:00:23]} 24. Kc2 {[%clk 00:00:41]} {[%emt 00:01:29]} Rd6
{[%clk 00:14:34]} {[%emt 00:00:02]} 25. Rh4 {[%clk 00:00:19]} {[%emt 00:00:33]}
Kg7 {[%clk 00:14:39]} {[%emt 00:00:04]} 26. g4 {[%clk 00:00:18]} {[%emt
00:00:12]} Rxd2+ {[%clk 00:14:28]} {[%emt 00:00:20]} 27. Kxd2 {[%clk 00:00:26]}
{[%emt 00:00:02]} Nxc4+ {[%clk 00:14:36]} {[%emt 00:00:02]} 28. Kd3 {[%clk
00:00:35]} {[%emt 00:00:01]} Nxe3 {[%clk 00:14:44]} {[%emt 00:00:03]} 29. Kxe3
{[%clk 00:00:44]} fxg4 {[%clk 00:14:51]} {[%emt 00:00:02]} 30. hxg4 {[%clk
00:00:51]} {[%emt 00:00:03]} Re5+ {[%clk 00:14:57]} {[%emt 00:00:04]} 0-1

[Event "Snabbschacks-SM 2025"]
[Site "Norrköping, Sweden"]
[Date "2025.09.27"]
[Round "3.8"]
[White "Rogoz, Vladyslav"]
[Black "Olsson, Linus"]
[Result "0-1"]
[TimeControl "25 min + 10 sec/move"]
[BlackTitle "FM"]
[WhiteElo "2108"]
[BlackElo "2166"]

1. d4 {[%clk 00:25:17]} {[%emt 00:00:02]} Nf6 {[%clk 00:25:12]} {[%emt
00:00:08]} 2. c4 {[%clk 00:25:25]} {[%emt 00:00:02]} e5 {[%clk 00:25:07]}
{[%emt 00:00:15]} 3. dxe5 {[%clk 00:25:33]} {[%emt 00:00:02]} Ne4 {[%clk
00:25:15]} {[%emt 00:00:02]} 4. g3 {[%clk 00:25:20]} {[%emt 00:00:24]} Bb4+
{[%clk 00:24:05]} {[%emt 00:01:20]} 5. Nd2 {[%clk 00:25:22]} {[%emt 00:00:08]}
d6 {[%clk 00:22:31]} {[%emt 00:01:44]} 6. exd6 {[%clk 00:24:39]} {[%emt
00:00:53]} Qxd6 {[%clk 00:21:24]} {[%emt 00:01:17]} 7. Bg2 {[%clk 00:24:31]}
{[%emt 00:00:18]} Bf5 {[%clk 00:20:40]} {[%emt 00:00:54]} 8. a3 {[%clk
00:24:17]} {[%emt 00:00:24]} Bxd2+ {[%clk 00:19:09]} {[%emt 00:01:41]} 9. Bxd2
{[%clk 00:24:23]} {[%emt 00:00:04]} Nc6 {[%clk 00:17:11]} {[%emt 00:02:07]} 10.
Nf3 {[%clk 00:23:03]} {[%emt 00:01:30]} O-O-O {[%clk 00:16:46]} {[%emt
00:00:35]} 11. Be3 {[%clk 00:22:29]} {[%emt 00:00:45]} Qe6 {[%clk 00:15:29]}
{[%emt 00:01:27]} 12. Qc1 {[%clk 00:22:17]} {[%emt 00:00:20]} Na5 {[%clk
00:13:18]} {[%emt 00:02:22]} 13. Nd4 {[%clk 00:21:40]} {[%emt 00:00:46]} Rxd4
{[%clk 00:13:05]} {[%emt 00:00:24]} 14. Bxd4 {[%clk 00:21:48]} {[%emt
00:00:02]} Nb3 {[%clk 00:13:07]} {[%emt 00:00:06]} 15. Qd1 {[%clk 00:21:56]}
{[%emt 00:00:03]} Qxc4 {[%clk 00:12:05]} {[%emt 00:01:13]} 16. Qd3 {[%clk
00:20:57]} {[%emt 00:01:09]} Qxd4 {[%clk 00:09:48]} {[%emt 00:02:27]} 17. O-O
{[%clk 00:18:58]} {[%emt 00:02:08]} Qxd3 {[%clk 00:08:43]} {[%emt 00:01:16]} 18.
exd3 {[%clk 00:19:07]} {[%emt 00:00:02]} Ned2 {[%clk 00:08:40]} {[%emt
00:00:12]} 19. Bd5 {[%clk 00:18:57]} {[%emt 00:00:19]} Nxa1 {[%clk 00:07:26]}
{[%emt 00:01:24]} 20. Rxa1 {[%clk 00:19:06]} {[%emt 00:00:02]} Be6 {[%clk
00:07:24]} {[%emt 00:00:12]} 21. Bg2 {[%clk 00:18:46]} {[%emt 00:00:30]} Rd8
{[%clk 00:07:14]} {[%emt 00:00:20]} 22. Rd1 {[%clk 00:18:48]} {[%emt 00:00:07]}
Rxd3 {[%clk 00:06:47]} {[%emt 00:00:37]} 23. Be4 {[%clk 00:18:18]} {[%emt
00:00:40]} Nf3+ {[%clk 00:06:34]} {[%emt 00:00:23]} 24. Bxf3 {[%clk 00:18:26]}
{[%emt 00:00:02]} Rxf3 {[%clk 00:06:43]} {[%emt 00:00:02]} 25. Kg2 {[%clk
00:18:22]} {[%emt 00:00:14]} Rb3 {[%clk 00:06:43]} {[%emt 00:00:10]} 26. Rd2
{[%clk 00:18:29]} {[%emt 00:00:02]} Rb6 {[%clk 00:06:31]} {[%emt 00:00:23]} 27.
h3 {[%clk 00:18:27]} {[%emt 00:00:12]} Rd6 {[%clk 00:06:38]} {[%emt 00:00:03]}
28. Rc2 {[%clk 00:18:30]} {[%emt 00:00:07]} b6 {[%clk 00:06:37]} {[%emt
00:00:11]} 29. g4 {[%clk 00:18:38]} {[%emt 00:00:01]} c5 {[%clk 00:06:33]}
{[%emt 00:00:14]} 30. f4 {[%clk 00:18:46]} {[%emt 00:00:02]} Rd3 {[%clk
00:06:32]} {[%emt 00:00:12]} 31. f5 {[%clk 00:18:19]} {[%emt 00:00:37]} Bd5+
{[%clk 00:06:39]} {[%emt 00:00:03]} 32. Kh2 {[%clk 00:18:26]} {[%emt 00:00:03]}
Kd7 {[%clk 00:06:44]} {[%emt 00:00:05]} 33. Re2 {[%clk 00:18:29]} {[%emt
00:00:07]} c4 {[%clk 00:06:45]} {[%emt 00:00:09]} 34. h4 {[%clk 00:18:27]}
{[%emt 00:00:12]} b5 {[%clk 00:06:41]} {[%emt 00:00:14]} 35. g5 {[%clk
00:18:33]} {[%emt 00:00:03]} a5 {[%clk 00:06:46]} {[%emt 00:00:06]} 36. Rf2
{[%clk 00:18:25]} {[%emt 00:00:18]} b4 {[%clk 00:06:48]} {[%emt 00:00:09]} 37.
axb4 {[%clk 00:18:33]} {[%emt 00:00:01]} axb4 {[%clk 00:06:56]} {[%emt
00:00:02]} 38. h5 {[%clk 00:18:37]} {[%emt 00:00:06]} c3 {[%clk 00:07:02]}
{[%emt 00:00:05]} 39. bxc3 {[%clk 00:18:45]} {[%emt 00:00:02]} bxc3 {[%clk
00:07:10]} 40. g6 {[%clk 00:17:54]} {[%emt 00:01:00]} fxg6 {[%clk 00:07:16]}
{[%emt 00:00:05]} 41. hxg6 {[%clk 00:17:40]} {[%emt 00:00:24]} hxg6 {[%clk
00:07:23]} {[%emt 00:00:04]} 42. fxg6 {[%clk 00:17:48]} {[%emt 00:00:02]} Rd2
{[%clk 00:07:27]} {[%emt 00:00:05]} 0-1

[Event "Snabbschacks-SM 2025"]
[Site "Norrköping, Sweden"]
[Date "2025.09.27"]
[Round "5.4"]
[White "Carlsson, Ludvig"]
[Black "Dingertz, Erik"]
[Result "1/2-1/2"]
[TimeControl "25 min + 10 sec/move"]
[WhiteTitle "IM"]
[WhiteElo "2389"]
[BlackElo "2112"]

1. e4 {[%clk 00:25:16]} {[%emt 00:00:03]} e5 {[%clk 00:25:19]} {[%emt
00:00:03]} 2. Nf3 {[%clk 00:25:23]} {[%emt 00:00:03]} Nc6 {[%clk 00:25:27]}
{[%emt 00:00:03]} 3. Nc3 {[%clk 00:25:30]} {[%emt 00:00:02]} Nf6 {[%clk
00:25:33]} {[%emt 00:00:04]} 4. d4 {[%clk 00:25:38]} {[%emt 00:00:02]} exd4
{[%clk 00:25:40]} {[%emt 00:00:04]} 5. Nxd4 {[%clk 00:25:45]} {[%emt 00:00:02]}
Bb4 {[%clk 00:25:47]} {[%emt 00:00:02]} 6. Nxc6 {[%clk 00:25:53]} {[%emt
00:00:03]} bxc6 {[%clk 00:25:56]} {[%emt 00:00:02]} 7. Bd3 {[%clk 00:26:00]}
{[%emt 00:00:02]} d5 {[%clk 00:26:03]} {[%emt 00:00:03]} 8. exd5 {[%clk
00:26:08]} {[%emt 00:00:03]} O-O {[%clk 00:25:59]} {[%emt 00:00:13]} 9. O-O
{[%clk 00:26:14]} {[%emt 00:00:03]} Bg4 {[%clk 00:26:01]} {[%emt 00:00:09]} 10.
f3 {[%clk 00:26:22]} {[%emt 00:00:02]} Bh5 {[%clk 00:26:10]} {[%emt 00:00:02]}
11. dxc6 {[%clk 00:26:30]} {[%emt 00:00:02]} Qd4+ {[%clk 00:26:14]} {[%emt
00:00:05]} 12. Kh1 {[%clk 00:26:38]} {[%emt 00:00:02]} Bxc3 {[%clk 00:26:22]}
{[%emt 00:00:03]} 13. bxc3 {[%clk 00:26:46]} {[%emt 00:00:01]} Qxc3 {[%clk
00:26:30]} {[%emt 00:00:02]} 14. Bf4 {[%clk 00:26:54]} {[%emt 00:00:01]} Qxc6
{[%clk 00:25:27]} {[%emt 00:01:14]} 15. Qe2 {[%clk 00:27:03]} {[%emt 00:00:02]}
Rfe8 {[%clk 00:21:11]} {[%emt 00:04:26]} 16. Bb5 {[%clk 00:27:07]} {[%emt
00:00:05]} Rxe2 {[%clk 00:21:19]} {[%emt 00:00:02]} 17. Bxc6 {[%clk 00:27:16]}
{[%emt 00:00:01]} Rb8 {[%clk 00:20:58]} {[%emt 00:00:32]} 18. Rab1 {[%clk
00:26:37]} {[%emt 00:00:48]} Rxb1 {[%clk 00:21:01]} {[%emt 00:00:07]} 19. Rxb1
{[%clk 00:26:45]} {[%emt 00:00:02]} h6 {[%clk 00:21:10]} {[%emt 00:00:02]} 20.
Bb5 {[%clk 00:24:05]} {[%emt 00:02:49]} Re6 {[%clk 00:16:57]} {[%emt 00:04:23]}
21. Bc4 {[%clk 00:23:50]} {[%emt 00:00:25]} Rc6 {[%clk 00:16:50]} {[%emt
00:00:17]} 22. Rb8+ {[%clk 00:23:58]} {[%emt 00:00:03]} Kh7 {[%clk 00:16:58]}
{[%emt 00:00:01]} 23. Bb3 {[%clk 00:24:05]} {[%emt 00:00:02]} Bg6 {[%clk
00:16:43]} {[%emt 00:00:26]} 24. Rb7 {[%clk 00:23:58]} {[%emt 00:00:17]} Bxc2
{[%clk 00:16:18]} {[%emt 00:00:35]} 25. Bxf7 {[%clk 00:24:03]} {[%emt
00:00:04]} Rb6 {[%clk 00:15:46]} {[%emt 00:00:43]} 26. Rxb6 {[%clk 00:24:01]}
{[%emt 00:00:12]} cxb6 {[%clk 00:15:55]} {[%emt 00:00:01]} 27. Bb8 {[%clk
00:21:50]} {[%emt 00:02:21]} a5 {[%clk 00:13:39]} {[%emt 00:02:26]} 28. Bc7
{[%clk 00:21:38]} {[%emt 00:00:24]} Nd7 {[%clk 00:13:48]} 29. Kg1 {[%clk
00:21:28]} {[%emt 00:00:18]} a4 {[%clk 00:13:56]} {[%emt 00:00:03]} 30. Be6
{[%clk 00:20:54]} {[%emt 00:00:44]} Nc5 {[%clk 00:09:11]} {[%emt 00:04:56]} 31.
Bc4 {[%clk 00:21:00]} {[%emt 00:00:03]} Nd7 {[%clk 00:09:20]} {[%emt 00:00:02]}
32. g4 {[%clk 00:21:08]} {[%emt 00:00:02]} h5 {[%clk 00:07:48]} {[%emt
00:01:42]} 33. Bb5 {[%clk 00:21:10]} {[%emt 00:00:07]} Nf6 {[%clk 00:07:54]}
{[%emt 00:00:04]} 34. Bxb6 {[%clk 00:19:52]} {[%emt 00:01:28]} hxg4 {[%clk
00:07:55]} {[%emt 00:00:09]} 35. fxg4 {[%clk 00:19:58]} {[%emt 00:00:04]} Nxg4
{[%clk 00:07:51]} {[%emt 00:00:14]} 36. Bd4 {[%clk 00:20:04]} {[%emt 00:00:05]}
Kg6 {[%clk 00:06:56]} {[%emt 00:01:03]} 37. h3 {[%clk 00:19:24]} {[%emt
00:00:50]} Nf6 {[%clk 00:07:01]} {[%emt 00:00:06]} 38. Kf2 {[%clk 00:19:29]}
{[%emt 00:00:05]} Bf5 {[%clk 00:04:36]} {[%emt 00:02:35]} 39. Bxa4 {[%clk
00:18:31]} {[%emt 00:01:08]} Bxh3 {[%clk 00:04:44]} {[%emt 00:00:02]} 40. Bb3
{[%clk 00:17:36]} {[%emt 00:01:06]} Bc8 {[%clk 00:04:27]} {[%emt 00:00:27]} 41.
Bc4 {[%clk 00:17:36]} {[%emt 00:00:10]} Bd7 {[%clk 00:04:35]} {[%emt 00:00:02]}
42. Bb3 {[%clk 00:17:26]} {[%emt 00:00:20]} Kf5 {[%clk 00:04:23]} {[%emt
00:00:22]} 43. a4 {[%clk 00:17:08]} {[%emt 00:00:28]} Ke4 {[%clk 00:04:03]}
{[%emt 00:00:29]} 44. Bb2 {[%clk 00:17:07]} {[%emt 00:00:11]} Ng4+ {[%clk
00:02:51]} {[%emt 00:01:23]} 45. Ke2 {[%clk 00:17:11]} {[%emt 00:00:05]} Ne5
{[%clk 00:02:46]} {[%emt 00:00:16]} 46. Bc3 {[%clk 00:16:52]} {[%emt 00:00:28]}
g5 {[%clk 00:02:42]} {[%emt 00:00:15]} 47. Bc2+ {[%clk 00:16:36]} {[%emt
00:00:26]} Kd5 {[%clk 00:02:44]} {[%emt 00:00:08]} 48. Ke3 {[%clk 00:16:43]}
{[%emt 00:00:03]} Ng4+ {[%clk 00:01:43]} {[%emt 00:01:12]} 49. Kd2 {[%clk
00:16:47]} {[%emt 00:00:05]} Ne5 {[%clk 00:01:42]} {[%emt 00:00:11]} 50. Bb3+
{[%clk 00:16:53]} {[%emt 00:00:04]} Ke4 {[%clk 00:01:47]} {[%emt 00:00:04]} 51.
Ke2 {[%clk 00:16:12]} {[%emt 00:00:52]} g4 {[%clk 00:01:16]} {[%emt 00:00:41]}
52. Bc2+ {[%clk 00:16:17]} {[%emt 00:00:05]} Kd5 {[%clk 00:01:25]} {[%emt
00:00:02]} 53. Kf2 {[%clk 00:16:20]} {[%emt 00:00:06]} Kc4 {[%clk 00:00:17]}
{[%emt 00:01:18]} 54. Bxe5 {[%clk 00:16:25]} {[%emt 00:00:05]} Kb4 {[%clk
00:00:26]} 55. Bd6+ {[%clk 00:16:32]} {[%emt 00:00:03]} Kc3 {[%clk 00:00:36]}
56. Bd1 {[%clk 00:15:31]} {[%emt 00:01:11]} Kd2 {[%clk 00:00:44]} 57. Be2
{[%clk 00:15:05]} {[%emt 00:00:36]} Bxa4 {[%clk 00:00:42]} {[%emt 00:00:12]} 58.
Bb4+ {[%clk 00:14:59]} {[%emt 00:00:16]} Kc2 {[%clk 00:00:45]} {[%emt
00:00:06]} 59. Ke3 {[%clk 00:14:57]} {[%emt 00:00:13]} Kb3 {[%clk 00:00:50]}
{[%emt 00:00:05]} 60. Bd6 {[%clk 00:15:03]} {[%emt 00:00:04]} Bd7 {[%clk
00:00:30]} {[%emt 00:00:30]} 61. Kd4 {[%clk 00:15:12]} {[%emt 00:00:02]} Bf5
{[%clk 00:00:35]} {[%emt 00:00:05]} 62. Bd1+ {[%clk 00:15:18]} {[%emt
00:00:04]} Bc2 {[%clk 00:00:43]} {[%emt 00:00:02]} 63. Bxg4 {[%clk 00:15:26]}
{[%emt 00:00:02]} Bg6 {[%clk 00:00:50]} {[%emt 00:00:02]} 64. Be2 {[%clk
00:15:24]} {[%emt 00:00:13]} Bf5 {[%clk 00:00:50]} {[%emt 00:00:10]} 65. Be7
{[%clk 00:15:28]} {[%emt 00:00:06]} Bg6 {[%clk 00:00:58]} {[%emt 00:00:02]} 66.
Bg4 {[%clk 00:15:35]} {[%emt 00:00:03]} Bh7 {[%clk 00:00:27]} {[%emt 00:00:41]}
67. Be6+ {[%clk 00:15:43]} {[%emt 00:00:02]} Kc2 {[%clk 00:00:31]} {[%emt
00:00:06]} 68. Bb4 {[%clk 00:15:49]} {[%emt 00:00:04]} Bg6 {[%clk 00:00:26]}
{[%emt 00:00:15]} 69. Bc3 {[%clk 00:15:56]} {[%emt 00:00:04]} Bh7 {[%clk
00:00:30]} {[%emt 00:00:06]} 70. Bf7 {[%clk 00:16:03]} {[%emt 00:00:02]} Bf5
{[%clk 00:00:38]} {[%emt 00:00:02]} 71. Ba2 {[%clk 00:16:04]} {[%emt 00:00:10]}
Bg6 {[%clk 00:00:41]} {[%emt 00:00:06]} 72. Ba5 {[%clk 00:16:08]} {[%emt
00:00:07]} Bh7 {[%clk 00:00:43]} {[%emt 00:00:08]} 73. Be6 {[%clk 00:16:04]}
{[%emt 00:00:14]} Bg6 {[%clk 00:00:50]} {[%emt 00:00:02]} 74. Bd7 {[%clk
00:16:13]} {[%emt 00:00:02]} Bf7 {[%clk 00:00:56]} {[%emt 00:00:04]} 75. Be1
{[%clk 00:16:11]} {[%emt 00:00:11]} Bg8 {[%clk 00:00:53]} {[%emt 00:00:14]} 76.
Bh4 {[%clk 00:16:20]} {[%emt 00:00:02]} Bf7 {[%clk 00:01:02]} {[%emt 00:00:01]}
77. Bg4 {[%clk 00:16:26]} {[%emt 00:00:02]} Bg8 {[%clk 00:00:58]} {[%emt
00:00:15]} 78. Bf5+ {[%clk 00:16:32]} {[%emt 00:00:04]} Kb3 {[%clk 00:01:06]}
{[%emt 00:00:02]} 79. Be1 {[%clk 00:16:39]} {[%emt 00:00:03]} Bf7 {[%clk
00:01:15]} {[%emt 00:00:01]} 80. Kd3 {[%clk 00:16:48]} {[%emt 00:00:01]} Bc4
{[%clk 00:01:17]} {[%emt 00:00:08]} 81. Kd2 {[%clk 00:16:57]} {[%emt 00:00:01]}
Bf7 {[%clk 00:01:24]} {[%emt 00:00:03]} 82. Bb1 {[%clk 00:17:05]} {[%emt
00:00:02]} Kb4 {[%clk 00:01:29]} {[%emt 00:00:03]} 83. Bf2 {[%clk 00:17:14]}
{[%emt 00:00:03]} Kb5 {[%clk 00:01:23]} {[%emt 00:00:15]} 84. Be4 {[%clk
00:17:22]} {[%emt 00:00:03]} Kc4 {[%clk 00:01:20]} {[%emt 00:00:13]} 85. Kc2
{[%clk 00:17:30]} {[%emt 00:00:01]} Be8 {[%clk 00:01:09]} {[%emt 00:00:21]} 86.
Ba7 {[%clk 00:17:24]} {[%emt 00:00:18]} Ba4+ {[%clk 00:00:59]} {[%emt
00:00:19]} 87. Kb2 {[%clk 00:17:32]} {[%emt 00:00:02]} Bd7 {[%clk 00:01:07]}
{[%emt 00:00:02]} 88. Bc2 {[%clk 00:17:36]} {[%emt 00:00:07]} 1/2-1/2